{"text_format":"1","workbook":"xlsx","n_sheets":3,"sheets":["Dues empreses","Tres o més empreses","Model redacció"],"not_rendered":{"charts":0,"images":2,"macros":1,"external_links":0,"defined_names":0,"comments":0,"pivot_tables":0},"unopened":[],"bounds":{"document_bytes":16777216,"sheet_cells":100000,"rows_first":2000,"rows_last":500,"rows_between":2000,"halvings":0,"cell_chars":16384,"cell_head_chars":4096},"cells_cut":0,"cells_raw":0,"read":"whole","date_system":"1900"}

{"sheet":"Dues empreses","index":0,"n_rows":19,"n_cols":6,"rows_kept":19,"cut":false,"hidden":false,"merged":[[12,0,12,2]]}
[]
[]
[]
[]
[]
[]
[]
["DETERMINACIÓ D'OFERTES ANORMALMENT BAIXES"]
[]
["NUM. EXPEDIENT:"]
["DESCRIPCIÓ:"]
[]
["CÀLCUL PER A DUES EMPRESES LICITADORES"]
[]
[]
["Nom de la empresa","Puntuació Preu","Preu anormal","Puntuació Criteris","Desviacions Criteris","Puntuació anormal"]
["Empresa 1",null,{"$f":"IF(ISNUMBER(B17),IF(B17>(1+0.2)*MIN(B$17:B$18),\"X\",\" \"),\" \")","v":" "},null,{"$f":"IF(ISNUMBER(D17),IF(D17>(1+0.2)*MIN(D$17:D$18),\"X\",\" \"),\" \")","v":" "},{"$f":"IF(AND(C17=\"X\",E17=\"X\"),\"X\",\" \")","v":" "}]
["Empresa 2",null,{"$f":"IF(ISNUMBER(B18),IF(B18>(1+0.2)*MIN(B$17:B$18),\"X\",\" \"),\" \")","v":" "},null,{"$f":"IF(ISNUMBER(D18),IF(D18>(1+0.2)*MIN(D$17:D$18),\"X\",\" \"),\" \")","v":" "},{"$f":"IF(AND(C18=\"X\",E18=\"X\"),\"X\",\" \")","v":" "}]
["Llindar (120%  punt. mínima) = ",{"$f":"IF(B$17+B$18>0,MIN(B$17:B$18)*1.2,\" \")","v":" "},null,{"$f":"IF(D$17+D$18>0,MIN(D17:D18)*1.2,\" \")","v":" "}]

{"sheet":"Tres o més empreses","index":1,"n_rows":39,"n_cols":7,"rows_kept":39,"cut":false,"hidden":false,"merged":[[12,0,12,2]]}
[]
[]
[]
[]
[]
[]
[]
["DETERMINACIÓ D'OFERTES ANORMALMENT BAIXES"]
[]
["NUM. EXPEDIENT:"]
["DESCRIPCIÓ:"]
[]
["CÀLCUL PER A TRES O MÉS EMPRESES LICITADORES"]
[]
[]
["Nom de la empresa","Puntuació Preu","Preu anormal","Puntuació Criteris","Desviacions Criteris","Puntuació anormal","Oferta anormal"]
["Empresa 1",null,{"$f":"IF(ISNUMBER(B17),IF(B17>B$39,\"X\",\" \"),\" \")","v":" "},null,{"$f":"IF(ISNUMBER(D17),ABS(D17-$D$37),\" \")","v":" "},{"$f":"IF(ISNUMBER(D17),IF(D17>$D$39,\"X\",\" \"),\" \")","v":" "},{"$f":"IF(AND(C17=\"X\",F17=\"X\"),\"X\",\" \")","v":" "}]
["Empresa 2",null," ",null,{"$f":"IF(ISNUMBER(D18),ABS(D18-$D$37),\" \")","v":" "}," "," "]
["Empresa 3",null," ",null," "," "," "]
["Empresa 4",null," ",null," "," "," "]
["Empresa 5",null," ",null," "," "," "]
["Empresa 6",null," ",null," "," "," "]
["Empresa 7",null," ",null," "," "," "]
["Empresa 8",null," ",null," "," "," "]
["Empresa 9",null," ",null," "," "," "]
["Empresa 10",null," ",null,{"$f":"IF(ISNUMBER(D26),ABS(D26-$D$37),\" \")","v":" "}," "," "]
["Empresa 11",null," ",null," "," "," "]
["Empresa 12",null," ",null," "," "," "]
["Empresa 13",null," ",null," "," "," "]
["Empresa 14",null," ",null," "," "," "]
["Empresa 15",null," ",null," "," "," "]
["Empresa 16",null," ",null," "," "," "]
["Empresa 17",null," ",null," "," "," "]
["Empresa 18",null," ",null," "," "," "]
["Empresa 19",null," ",null," "," "," "]
["Empresa 20",null," ",null," "," "," "]
["Mitjana:",{"$f":"IF(SUM(B$17:B$36)>0,AVERAGE(B$17:B$36),\" \")","v":" "},null,{"$f":"IF(SUM(D$17:D$36)>0,AVERAGE(D$17:D$36),\" \")","v":" "},{"$f":"IF(SUM(D$17:D$36)>0,AVERAGE(E$17:E$36),\" \")","v":" "}]
["p (llindar) =",0.1]
["Llindar:",{"$f":"IF(SUM(B$17:B$36)>0,(1+B$38)*B$37,\" \")","v":" "},null,{"$f":"IF(SUM(D17:D36)>0,D37+E37,\" \")","v":" "}]

{"sheet":"Model redacció","index":2,"n_rows":8,"n_cols":1,"rows_kept":8,"cut":false,"hidden":false,"merged":[[7,0,8,0]]}
[]
[]
[]
[]
[]
["Model de redacció de la clàusula per al càlcul d’ofertes anormalment baixes per incorporar al PCAP en procediments en què la valoració de les ofertes es dugui a terme tenint en compte més d’un criteri d’adjudicació"]
[]
["La determinació de les ofertes que presentin uns valors anormalment baixos s’ha de dur a terme en funció dels límits i els paràmetres objectius establerts a continuació. \n\na. Si concorre una empresa licitadora, es considera anormalment baixa l’oferta que compleixi els dos criteris següents:\n\n1. Que l’oferta econòmica sigui un 25% més baixa que el pressupost de licitació.\n2. Que la puntuació que li correspongui en la resta de criteris d’adjudicació diferents del preu sigui superior al 90% de la puntuació total establerta en el plec de clàusules administratives particulars.\n\nb. Si concorren dues empreses licitadores, es considera anormalment baixa l’oferta que compleixi els dos criteris següents:\n\n1. Que la puntuació que li correspongui en l’oferta econòmica sigui superior en més d’un 20% a la de l’altra oferta.\n2. Que la puntuació que li correspongui en la resta de criteris d’adjudicació diferents del preu sigui superior en més d’un 20% a la puntuació més baixa.\n\nc. Si concorren tres o més empreses licitadores, es considera anormalment baixa l’oferta que compleixi els dos criteris següent:\n \n1. Que la puntuació que li correspongui en l’oferta econòmica sigui superior en més d’un 10%* a la mitjana aritmètica de les puntuacions de totes les ofertes econòmiques presentades. \n2. Que la puntuació que li correspongui en la resta de criteris d’adjudicació diferents del preu, sigui superior a la suma de la mitjana aritmètica de les puntuacions de les ofertes i la desviació mitjana d’aquestes puntuacions. \n\nPer calcular la desviació mitjana de les puntuacions s’obtindrà, per a cada oferta, el valor absolut de la diferència entre la seva puntuació i la mitjana aritmètica de les puntuacions de totes les ofertes. La desviació mitjana de les puntuacions és igual a la mitjana aritmètica d’aquests valors absoluts. \n\n*Aquest límit pot ésser modificat per decisió de cada poder adjudicador.\n"]